bitfinex-derivatives/quotes_SOLF0:USTF0_20250110
["timestamp","ask_amount","ask_price","bid_price","bid_amount"]
[1736482874000,4.58,189.59,189.45,9.64618626]
[1736482874193,2.6381,189.56,189.51,2.6387]
[1736482874393,9.64618626,189.57,189.45,9.64618626]
[1736482875000,2.6382,189.55,189.5,2.6388]
[1736482875202,2.6382,189.55,189.45,9.64618626]
[1736482876399,12.28418626,189.57,189.45,9.64618626]
[1736482876901,2.638,189.56,189.45,9.64618626]
[1736482877605,2.638,189.56,189.52,2.6386]
[1736482879094,9.64618626,189.57,189.45,9.64618626]
[1736482879301,12.28408626,189.57,189.53,2.6384]
[1736482879501,9.64618626,189.54,189.44,3.0637]
[1736482879701,9.64618626,189.54,189.47,2.6393]
[1736482880098,9.64618626,189.54,189.44,3.0637]
[1736482880295,2.6388,189.51,189.46,2.6394]
[1736482885411,2.6388,189.51,189.47,2.6393]
[1736482886505,4.58,189.52,189.44,1.5185]
[1736482886713,9.64618626,189.51,189.38,9.64618626]
[1736482887015,9.64618626,189.51,189.38,11.18588626]
[1736482887807,4.58,189.52,189.38,11.18588626]
[1736482888012,4.58,189.52,189.42,2.64]
[1736482888013,7.2187,189.52,189.42,2.64]
[1736482888320,7.2187,189.52,189.38,11.18588626]
[1736482889419,2.6388,189.51,189.38,11.18588626]
[1736482892127,2.6388,189.51,189.46,2.6393]
[1736482892925,4.58,189.52,189.48,2.6391]
[1736482893224,2.6386,189.53,189.48,2.6391]
[1736482893422,6.16340509,189.51,189.48,2.6391]
[1736482895231,6.16340509,189.51,189.49,2.639]
[1736482896530,8.80220509,189.51,189.42,6.16340509]
[1736482896726,6.16340509,189.49,189.42,6.16340509]
[1736482897029,6.16340509,189.49,189.47,2.6392]
[1736482897529,6.16340509,189.49,189.42,6.16340509]
[1736482897723,6.16340509,189.49,189.44,2.6397]
[1736482897926,6.16340509,189.49,189.42,6.16340509]
[1736482899027,6.16340509,189.51,189.47,2.6392]
[1736482901231,6.16340509,189.49,189.45,2.6395]
[1736482901430,6.16340509,189.47,189.39,6.16340509]
[1736482901929,6.16340509,189.47,189.38,1.5397]
[1736482901930,6.16340509,189.47,189.41,6.16340509]
[1736482903132,6.16340509,189.47,189.44,2.6396]
[1736482905535,6.16340509,189.45,189.43,2.6398]
[1736482905733,6.16340509,189.45,189.38,1.5397]
[1736482905931,6.16340509,189.43,189.37,3.2354]
[1736482906132,6.16340509,189.41,189.34,6.16340509]
[1736482906835,6.16340509,189.41,189.37,2.6406]
[1736482907934,6.16340509,189.41,189.34,6.16340509]
[1736482907935,6.16340509,189.41,189.38,2.6405]
[1736482908236,4.56,189.47,189.36,6.16340509]
[1736482908438,6.16340509,189.44,189.42,2.6399]
[1736482908637,6.16340509,189.44,189.36,6.16340509]
[1736482908934,6.16340509,189.42,189.36,6.16340509]
[1736482909139,6.16340509,189.42,189.4,2.6403]
[1736482910036,6.16340509,189.42,189.36,6.16340509]
[1736482910230,2.6395,189.46,189.36,6.16340509]
[1736482910630,6.16340509,189.43,189.42,2.64]
[1736482911039,6.16340509,189.45,189.43,2.6398]
[1736482913139,2.6387,189.52,189.42,6.16340509]
[1736482913333,6.16340509,189.5,189.42,6.16340509]
[1736482914136,6.16340509,189.5,189.47,2.6393]
[1736482914336,6.16340509,189.48,189.36,4.56]
[1736482914638,6.16340509,189.48,189.4,6.16340509]
[1736482914835,6.16340509,189.48,189.44,2.6396]
[1736482915037,6.16340509,189.46,189.44,2.6396]
[1736482915436,6.16340509,189.46,189.43,2.6398]
[1736482916535,6.16340509,189.44,189.41,2.64]
[1736482919239,6.16340509,189.42,189.4,2.6402]
[1736482923943,6.16340509,189.44,189.41,2.6401]
[1736482925241,6.16340509,189.46,189.37,6.16340509]
[1736482925442,172.43315183,189.53,189.41,6.16340509]
[1736482925637,6.16340509,189.5,189.43,6.16340509]
[1736482925843,6.16340509,189.5,189.48,2.639]
[1736482926246,6.16340509,189.5,189.43,6.16340509]
[1736482926544,6.16340509,189.5,189.44,3.1307]
[1736482928147,6.16340509,189.5,189.48,2.639]
[1736482928447,6.16340509,189.5,189.44,3.1307]
[1736482928645,6.16340509,189.48,189.44,3.1307]
[1736482928847,6.16340509,189.48,189.45,2.6395]
[1736482929146,6.16340509,189.48,189.44,3.1307]
[1736482929351,6.16340509,189.46,189.37,4.56]
[1736482929546,6.16340509,189.46,189.39,6.16340509]
[1736482930047,4.56,189.54,189.41,6.16340509]
[1736482930242,6.16340509,189.49,189.41,6.16340509]
[1736482930640,6.16340509,189.49,189.45,2.6395]
[1736482931040,6.16340509,189.49,189.46,2.6394]
[1736482931243,6.16340509,189.51,189.43,6.16340509]
[1736482931648,6.16340509,189.51,189.48,2.639]
[1736482932353,6.16340509,189.49,189.46,2.6393]
[1736482932653,6.16340509,189.49,189.41,6.16340509]
[1736482932851,6.16340509,189.49,189.45,2.6395]
[1736482933745,6.16340509,189.49,189.46,2.6394]
[1736482933944,6.16340509,189.49,189.43,6.16340509]
[1736482935053,6.16340509,189.51,189.48,2.6391]
[1736482935265,2.6385,189.53,189.48,2.6391]
[1736482935462,6.16340509,189.5,189.48,2.6391]
[1736482939053,6.16340509,189.5,189.45,2.6396]
[1736482939266,6.16340509,189.5,189.43,6.16340509]
[1736482939951,6.16340509,189.5,189.45,2.6396]
[1736482940155,6.16340509,189.46,189.39,1.5334]
[1736482940357,6.16340509,189.46,189.39,7.69680509]
[1736482940557,6.16340509,189.46,189.44,2.6397]
[1736482944260,6.16340509,189.46,189.39,7.69680509]
[1736482945274,6.16340509,189.46,189.42,2.6399]
[1736482945780,6.16340509,189.44,189.39,1.5334]
[1736482945972,6.16340509,189.44,189.38,3.1279]
[1736482945973,6.16340509,189.44,189.4,2.6402]
[1736482946580,6.16340509,189.42,189.36,6.16340509]
[1736482946772,6.16340509,189.42,189.34,6.16340509]
[1736482947377,6.16340509,189.42,189.39,2.6403]
[1736482947577,6.16340509,189.42,189.36,6.16340509]
[1736482947780,6.16340509,189.42,189.39,2.6403]
[1736482950676,6.16340509,189.42,189.38,2.6405]
[1736482951183,6.16340509,189.42,189.34,6.16340509]
[1736482951484,4.56,189.48,189.33,4.7161]
[1736482951485,8.80370509,189.4,189.33,4.7161]
[1736482951675,6.16340509,189.38,189.33,4.7161]
[1736482952276,6.16340509,189.4,189.36,2.6408]
[1736482952583,6.16340509,189.42,189.34,6.16340509]
[1736482953981,6.16340509,189.42,189.39,2.6404]
[1736482954378,6.16340509,189.42,189.34,6.16340509]
[1736482954578,6.16340509,189.42,189.38,2.6405]
[1736482955686,6.16340509,189.42,189.39,2.6403]
[1736482957081,2.6396,189.45,189.36,6.16340509]
[1736482957285,6.16340509,189.43,189.36,6.16340509]
[1736482957582,6.16340509,189.43,189.38,2.6405]
[1736482957784,6.16340509,189.43,189.36,6.16340509]
[1736482959084,6.16340509,189.43,189.4,2.6402]
[1736482960184,2.6398,189.44,189.4,2.6402]
[1736482960380,6.16340509,189.47,189.4,6.16340509]
[1736482960685,6.16340509,189.49,189.4,6.16340509]
[1736482961184,6.16340509,189.49,189.42,6.16340509]
[1736482961588,8.80240509,189.49,189.44,2.6397]
[1736482962680,6.16340509,189.51,189.42,6.16340509]
[1736482962880,6.16340509,189.51,189.44,6.16340509]
[1736482964089,6.16340509,189.51,189.47,2.6392]
[1736482965981,6.16340509,189.49,189.42,6.16340509]
[1736482966884,6.16340509,189.45,189.38,6.16340509]
[1736482967491,6.16340509,189.45,189.41,2.6401]
[1736482969392,6.16340509,189.45,189.43,2.6398]
[1736482971384,6.16340509,189.47,189.43,2.6398]
[1736482972491,8.80270509,189.47,189.43,2.6398]
[1736482975493,6.16340509,189.45,189.43,2.6398]
[1736482975690,8.80300509,189.45,189.4,2.6402]
[1736482975887,6.16340509,189.43,189.4,2.6402]
[1736482976194,6.16340509,189.43,189.36,6.16340509]
[1736482977097,6.16340509,189.43,189.39,2.6404]
[1736482980092,8.80330509,189.43,189.39,2.6404]
[1736482980292,6.16340509,189.43,189.39,2.6404]
[1736482982392,6.16340509,189.43,189.36,6.16340509]
[1736482982598,8.80300509,189.45,189.4,2.6402]
[1736482982793,6.16340509,189.47,189.4,6.16340509]
[1736482984397,4.56,189.49,189.33,4.7161]
[1736482984398,6.16340509,189.45,189.33,4.7161]
[1736482984595,6.16340509,189.45,189.38,6.16340509]
[1736482984796,6.16340509,189.45,189.41,2.6401]
[1736482985592,6.16340509,189.43,189.39,2.6403]
[1736482985798,6.16340509,189.41,189.34,6.16340509]
[1736482986595,6.16340509,189.41,189.37,2.6406]
[1736482986791,6.16340509,189.39,189.33,4.7161]
[1736482986995,6.16340509,189.37,189.33,3.1228]
[1736482988000,6.16340509,189.37,189.34,2.641]
[1736482988201,6.16340509,189.37,189.32,53.59087627]
[1736482988799,6.16340509,189.37,189.29,6.16340509]
[1736482989705,6.16340509,189.37,189.33,2.6411]
[1736482991699,2.64,189.43,189.37,2.6406]
[1736482991904,6.16340509,189.41,189.33,6.16340509]
[1736482992101,6.16340509,189.39,189.28,1.5998]
[1736482992400,6.16340509,189.39,189.32,6.16340509]
[1736482992604,6.16340509,189.37,189.3,6.16340509]
[1736482994106,6.16340509,189.37,189.33,2.6412]
[1736482995411,2.6406,189.38,189.33,2.6412]
[1736482995601,6.16340509,189.37,189.33,2.6412]
[1736482996808,6.16340509,189.37,189.34,2.6411]
[1736482998015,2.6403,189.4,189.35,2.6408]
[1736482998310,2.6403,189.4,189.32,6.16340509]
[1736482998311,6.16340509,189.4,189.32,6.16340509]
[1736482998510,6.16340509,189.42,189.38,2.6404]
[1736482998903,6.16340509,189.45,189.38,6.16340509]
[1736483000610,6.16340509,189.45,189.4,2.6402]
[1736483000811,6.16340509,189.43,189.4,2.6402]
[1736483001907,6.16340509,189.41,189.38,2.6405]
[1736483006111,6.16340509,189.39,189.28,1.5998]
[1736483006317,6.16340509,189.37,189.3,6.16340509]
[1736483007720,6.16340509,189.37,189.32,2.6414]
[1736483008911,6.16340509,189.37,189.3,6.16340509]
[1736483009111,4.56,189.41,189.32,6.16340509]
[1736483009112,6.16340509,189.39,189.32,6.16340509]
[1736483009313,6.16340509,189.39,189.28,1.5998]
[1736483009514,6.16340509,189.39,189.31,6.16340509]
[1736483009817,6.16340509,189.39,189.35,2.6408]
[1736483010017,6.16340509,189.39,189.31,6.16340509]
[1736483011117,6.16340509,189.39,189.36,2.6408]
[1736483011311,10.72340509,189.41,189.35,6.16340509]
[1736483012319,10.72340509,189.41,189.37,2.6406]
[1736483013816,10.72340509,189.41,189.28,1.5998]
[1736483013817,6.16340509,189.39,189.31,6.16340509]
[1736483014917,6.16340509,189.39,189.35,2.6408]
[1736483015419,6.16340509,189.39,189.31,6.16340509]
[1736483016215,6.16340509,189.39,189.36,2.6408]
[1736483019419,6.16340509,189.41,189.38,2.6405]
[1736483020314,6.16340509,189.41,189.4,2.6402]
[1736483020519,6.16340509,189.43,189.35,6.16340509]
[1736483020720,6.16340509,189.43,189.35,7.72180509]
[1736483020918,6.16340509,189.43,189.42,2.64]
[1736483021313,6.16340509,189.43,189.35,7.72180509]
[1736483024118,6.16340509,189.43,189.39,2.6403]
[1736483024420,6.16340509,189.41,189.39,2.6403]
[1736483024622,6.16340509,189.41,189.34,3.2023]
[1736483024823,6.16340509,189.38,189.36,2.6407]
[1736483027720,6.16340509,189.38,189.34,3.2023]
[1736483027921,6.16340509,189.38,189.37,2.6407]
[1736483028719,6.16340509,189.4,189.37,2.6407]
[1736483032322,6.16340509,189.38,189.29,1.6149]
[1736483032518,151.41937322,189.46,189.29,1.6149]
[1736483032519,6.16340509,189.34,189.29,1.6149]
[1736483033137,6.16340509,189.34,189.32,2.6413]
[1736483033534,6.16340509,189.36,189.29,1.6149]
[1736483033732,6.16340509,189.36,189.34,2.641]
[1736483034529,6.16340509,189.36,189.3,6.16340509]
[1736483034734,6.16340509,189.36,189.35,2.641]
[1736483034934,6.16340509,189.38,189.3,6.16340509]
[1736483035133,4.56,189.39,189.32,6.16340509]
[1736483036032,4.56,189.39,189.34,2.6411]
[1736483036233,4.56,189.39,189.32,6.16340509]
[1736483036835,6.16340509,189.38,189.35,2.6409]
[1736483039035,6.16340509,189.38,189.3,6.16340509]
[1736483039228,6.16340509,189.38,189.34,2.6411]
[1736483039428,6.16340509,189.38,189.3,6.16340509]
[1736483039632,6.16340509,189.38,189.29,1.6149]
[1736483039633,6.16340509,189.36,189.29,7.77830509]
[1736483040239,6.16340509,189.36,189.32,2.6413]
[1736483040641,6.16340509,189.36,189.29,7.77830509]
[1736483042243,6.16340509,189.36,189.32,2.6413]
[1736483045244,6.16340509,189.36,189.29,7.77830509]
[1736483046246,6.16340509,189.36,189.34,2.6411]
[1736483046647,6.16340509,189.36,189.33,2.6412]
[1736483046841,6.16340509,189.34,189.27,3.0636]
[1736483047043,6.16340509,189.32,189.27,1.5802]
[1736483047246,4.56,189.39,189.27,2.6419]
[1736483047247,6.16340509,189.3,189.27,2.6419]
[1736483047846,6.16340509,189.32,189.29,2.6417]
[1736483050251,6.16340509,189.32,189.25,59.77940003]
[1736483050945,6.16340509,189.32,189.27,2.6421]
[1736483051148,6.16340509,189.32,189.25,59.77940003]
[1736483051645,6.16340509,189.32,189.27,2.6421]
[1736483051940,6.16340509,189.32,189.25,59.77940003]
[1736483052746,6.16340509,189.32,189.27,2.6421]
[1736483052946,6.16340509,189.32,189.25,59.77940003]
[1736483053847,6.16340509,189.32,189.25,53.61599494]
[1736483054049,6.16340509,189.32,189.25,59.77940003]
[1736483054254,4.6735,189.38,189.25,53.61599494]
[1736483054255,6.16340509,189.3,189.25,53.61599494]
[1736483055251,6.16340509,189.3,189.27,2.6421]
[1736483056653,6.16340509,189.3,189.25,53.61599494]
[1736483056853,6.16340509,189.3,189.26,2.6422]
[1736483057050,6.16340509,189.28,189.22,3.1695]
[1736483057450,6.16340509,189.28,189.24,2.6424]
[1736483057651,6.16340509,189.28,189.22,3.1695]
[1736483059050,6.16340509,189.28,189.25,2.6423]
[1736483059454,6.16340509,189.28,189.22,1.6045]
[1736483060356,6.16340509,189.28,189.24,2.6424]
[1736483062248,4.56,189.32,189.25,2.6423]
[1736483062249,8.80510509,189.3,189.25,2.6423]
[1736483062552,6.16340509,189.28,189.25,2.6423]
[1736483068657,6.16340509,189.26,189.23,2.6426]
[1736483068963,6.16340509,189.24,189.17,7.73180509]
[1736483069265,6.16340509,189.22,189.17,1.5684]
[1736483069652,4.56,189.25,189.17,7.73180509]
[1736483069864,10.72340509,189.25,189.17,7.73180509]
[1736483072464,10.72340509,189.25,189.2,2.6429]
[1736483072665,4.56,189.25,189.17,7.73180509]
[1736483072860,4.56,189.25,189.19,6.16340509]
[1736483073059,4.56,189.25,189.24,2.6425]
[1736483073259,6.16340509,189.28,189.21,6.16340509]
[1736483073456,6.16340509,189.28,189.23,2.6426]
[1736483073654,6.16340509,189.28,189.21,6.16340509]
[1736483074056,6.16340509,189.28,189.25,2.6423]
[1736483078472,2.6418,189.29,189.25,2.6423]
[1736483078664,6.16340509,189.28,189.25,2.6423]
[1736483079368,6.16340509,189.26,189.23,2.6425]
[1736483080165,8.80560509,189.26,189.22,2.6427]
[1736483081268,6.16340509,189.24,189.17,1.5684]
[1736483081464,6.16340509,189.2,189.15,1.4838]
[1736483082673,6.16340509,189.2,189.17,2.6433]
[1736483088373,6.16340509,189.2,189.16,2.6436]
[1736483089478,6.16340509,189.18,189.13,2.6439]
[1736483089776,6.16340509,189.16,189.09,3.0702]
[1736483090277,6.16340509,189.16,189.12,2.6442]
[1736483091377,6.16340509,189.18,189.14,2.6438]
[1736483091775,2.6431,189.2,189.12,6.16340509]
[1736483092080,6.16340509,189.2,189.14,6.16340509]
[1736483093484,6.16340509,189.2,189.13,6.16340509]
[1736483094081,6.16340509,189.2,189.16,2.6435]
[1736483094983,6.16340509,189.2,189.13,6.16340509]
[1736483096182,6.16340509,189.2,189.16,2.6435]
[1736483096379,6.16340509,189.2,189.13,6.16340509]
[1736483096785,6.16340509,189.2,189.16,2.6435]
[1736483097785,6.16340509,189.2,189.13,6.16340509]
[1736483098085,6.16340509,189.2,189.17,2.6434]
[1736483100495,8.80620509,189.22,189.18,2.6433]
[1736483101787,6.16340509,189.2,189.17,2.6435]
[1736483102382,8.80650509,189.2,189.15,2.6437]
[1736483102584,8.80650509,189.2,189.13,6.16340509]
[1736483103086,8.80650509,189.2,189.15,2.6436]
[1736483103595,6.16340509,189.18,189.12,2.6441]
[1736483103894,6.16340509,189.18,189.1,7.65630509]
[1736483104298,6.16340509,189.18,189.14,2.6439]
[1736483105296,6.16340509,189.16,189.14,2.6439]
[1736483105594,6.16340509,189.16,189.1,7.65630509]
[1736483105792,6.16340509,189.16,189.1,1.4929]
[1736483105991,6.16340509,189.14,189.09,1.5064]
[1736483106191,8.80730509,189.14,189.09,2.6445]
[1736483106496,6.16340509,189.14,189.07,6.16340509]
[1736483108187,6.16340509,189.14,189.1,2.6443]
[1736483108391,6.16340509,189.14,189.07,6.16340509]
[1736483109498,6.16340509,189.14,189.03,4.7578]
[1736483109696,6.16340509,189.14,189.08,6.16340509]
[1736483110296,6.16340509,189.12,189.03,4.7578]
[1736483110699,6.16340509,189.12,189.05,6.16340509]
[1736483111800,6.16340509,189.14,189.11,2.6443]
[1736483111995,4.58,189.17,189.09,6.16340509]
[1736483112193,10.74340509,189.17,189.11,6.16340509]
[1736483112400,10.74340509,189.17,189.09,6.16340509]
[1736483112897,10.74340509,189.17,189.11,2.6443]
[1736483113098,10.74340509,189.17,189.09,6.16340509]
[1736483113497,10.74340509,189.17,189.13,2.644]
[1736483114395,6.16340509,189.19,189.11,6.16340509]
[1736483114599,6.16340509,189.19,189.15,2.6437]
[1736483115302,6.16340509,189.19,189.17,2.6435]
[1736483116702,6.16340509,189.19,189.16,2.6436]
[1736483117495,6.16340509,189.22,189.14,6.16340509]
[1736483117998,6.16340509,189.22,189.16,2.6436]
[1736483118201,6.16340509,189.22,189.14,6.16340509]
[1736483119199,6.16340509,189.22,189.18,2.6433]
[1736483122197,8.80620509,189.22,189.18,2.6433]
[1736483123602,6.16340509,189.2,189.18,2.6433]
[1736483124293,6.16340509,189.2,189.13,1.6106]
[1736483124497,6.16340509,189.18,189.13,1.6106]
[1736483124903,8.80710509,189.16,189.07,2.6448]
[1736483125096,8.80710509,189.16,189.09,6.16340509]
[1736483126108,6.16340509,189.14,189.11,2.6443]
[1736483126818,6.16340509,189.12,189.07,6.16340509]
[1736483128211,6.16340509,189.12,189.09,2.6446]
[1736483129512,2.6439,189.14,189.05,1.6039]
[1736483129710,6.16340509,189.1,189.05,1.6039]
[1736483130213,4.56,189.16,189.06,6.16340509]
[1736483130419,6.16340509,189.13,189.06,6.16340509]
[1736483131211,6.16340509,189.13,189.09,2.6445]
[1736483131407,6.16340509,189.13,189.06,6.16340509]
[1736483132619,6.16340509,189.11,189.06,2.6449]
[1736483132817,6.16340509,189.11,189.05,1.6039]
[1736483134312,6.16340509,189.11,189.06,2.6449]
[1736483135316,6.16340509,189.09,189.06,2.6449]
[1736483138316,6.16340509,189.09,189.05,2.6451]
[1736483139321,6.16340509,189.09,189.03,1.5849]
[1736483139516,6.16340509,189.07,189.03,4.2302]
[1736483139719,6.16340509,189.05,188.98,1.5228]
[1736483139915,6.16340509,189.03,188.98,1.5228]
[1736483141421,6.16340509,189.03,188.98,7.68620509]
[1736483141623,6.16340509,189.03,189.01,2.6457]
[1736483143124,6.16340509,189.03,188.98,7.68620509]
[1736483143822,6.16340509,189.03,188.98,1.5228]
[1736483144022,6.16340509,189.03,188.98,2.6461]
[1736483144323,6.16340509,189.01,188.96,9.17170509]
[1736483145827,6.16340509,189.01,188.96,3.0083]
[1736483147026,6.16340509,189.01,189.0,2.6458]
[1736483148119,4.7715,189.08,188.99,6.16340509]
[1736483148120,7.4163,189.08,188.99,6.16340509]
[1736483148326,6.16340509,189.06,189.01,6.16340509]
[1736483148621,6.16340509,189.06,189.05,2.6451]
[1736483148923,6.16340509,189.06,188.96,1.4988]
[1736483149122,6.16340509,189.04,188.96,1.4988]
[1736483149427,6.16340509,189.04,188.99,2.646]
[1736483149620,6.16340509,189.04,188.97,6.16340509]
[1736483150821,6.16340509,189.04,188.99,2.646]
[1736483151030,6.16340509,189.04,188.97,6.16340509]
[1736483151223,6.16340509,189.02,188.96,1.4988]
[1736483151728,6.16340509,189.02,188.98,2.6461]
[1736483151931,6.16340509,189.0,188.94,6.16340509]
[1736483152927,6.16340509,189.0,188.92,7.66180509]
[1736483153131,6.16340509,189.0,188.96,2.6463]
[1736483153423,6.16340509,188.98,188.92,1.4984]
[1736483153631,6.16340509,188.96,188.92,1.4984]
[1736483153828,6.16340509,188.96,188.94,2.6466]
[1736483154526,6.16340509,188.96,188.93,2.6468]
[1736483155225,6.16340509,188.96,188.89,1.6188]
[1736483155418,6.16340509,188.96,188.89,7.78220509]
[1736483156226,6.16340509,188.96,188.93,2.6468]
[1736483157221,6.16340509,188.94,188.82,4.37916516]
[1736483157423,6.16340509,188.94,188.74,153.433026]
[1736483157424,6.16340509,188.87,188.81,6.16340509]
[1736483157729,6.16340509,188.87,188.77,4.756]
[1736483157921,6.16340509,188.87,188.82,2.6483]
[1736483158524,6.16340509,188.9,188.86,2.6478]
[1736483159027,4.68,188.95,188.87,2.6476]
[1736483159332,6.16340509,188.88,188.77,4.756]
[1736483159531,6.16340509,188.88,188.81,6.16340509]
[1736483161233,6.16340509,188.88,188.84,2.6481]
[1736483161930,6.16340509,188.91,188.89,2.6474]
[1736483162725,7.3064,188.96,188.9,2.6472]
[1736483162926,4.7007,189.0,188.87,6.16340509]
[1736483163130,6.16340509,188.94,188.86,1.5229]
[1736483163328,6.16340509,188.92,188.86,1.5229]
[1736483163525,6.16340509,188.9,188.86,1.5229]
[1736483163732,6.16340509,188.9,188.88,2.6474]
[1736483166842,6.16340509,188.9,188.86,1.5229]
[1736483167038,6.16340509,188.9,188.89,2.6474]
[1736483167336,6.16340509,188.92,188.86,1.5229]
[1736483167545,6.16340509,188.92,188.86,7.68630509]
[1736483168834,6.16340509,188.92,188.9,2.6472]
[1736483169039,6.16340509,188.92,188.86,1.5229]
[1736483169244,6.16340509,188.89,188.78,4.37997725]
[1736483169540,6.16340509,188.87,188.85,2.6478]
[1736483170534,6.16340509,188.87,188.8,6.16340509]
[1736483172837,7.3271,188.92,188.85,2.6478]
[1736483173033,6.16340509,188.87,188.85,2.6478]
[1736483175240,6.16340509,188.87,188.86,2.6478]
[1736483177745,9.3607,189.0,188.86,6.16340509]
[1736483177947,6.16340509,188.94,188.88,6.16340509]
[1736483178644,6.16340509,188.92,188.79,1.5071]
[1736483178847,6.16340509,188.9,188.83,6.16340509]
[1736483179347,6.16340509,188.88,188.85,2.6479]
[1736483180446,7.3272,188.91,188.87,2.6477]
[1736483180447,6.16340509,188.9,188.87,2.6477]
[1736483180748,6.16340509,188.9,188.83,6.16340509]
[1736483180949,6.16340509,188.9,188.85,6.16340509]
[1736483181149,4.68,188.91,188.85,6.16340509]
[1736483182340,4.68,188.91,188.87,6.16340509]
[1736483182746,4.68,188.91,188.9,2.6472]
[1736483183059,6.16340509,188.96,188.89,6.16340509]
[1736483183249,6.16340509,188.96,188.93,2.6467]
[1736483183445,6.16340509,188.96,188.89,6.16340509]
[1736483183646,6.16340509,188.96,188.9,3.1006]
[1736483183848,146.85937322,189.04,188.91,6.16340509]
[1736483184050,6.16340509,188.97,188.91,6.16340509]
[1736483184351,6.16340509,188.97,188.94,2.6466]
[1736483184848,4.68,189.03,188.9,3.1006]
[1736483184849,6.16340509,188.95,188.9,3.1006]
[1736483185851,6.16340509,188.95,188.92,2.6468]
[1736483189446,6.16340509,188.93,188.78,9.67777725]
[1736483189650,4.66,188.96,188.84,6.16340509]
[1736483189651,6.16340509,188.91,188.84,6.16340509]
[1736483190051,6.16340509,188.89,188.86,2.6478]
[1736483190357,6.16340509,188.89,188.84,6.16340509]
[1736483191149,6.16340509,188.93,188.86,6.16340509]
[1736483193155,6.16340509,188.93,188.91,2.647]
[1736483194356,6.16340509,188.93,188.89,2.6473]
[1736483194550,6.16340509,188.93,188.85,6.16340509]
[1736483194753,6.16340509,188.91,188.84,1.5227]
[1736483195053,6.16340509,188.91,188.88,2.6474]
[1736483195359,6.16340509,188.91,188.84,7.68610509]
[1736483196255,6.16340509,188.91,188.89,2.6473]
[1736483197847,4.66,188.96,188.86,6.16340509]
[1736483198154,6.16340509,188.94,188.92,2.647]
[1736483201655,6.16340509,188.94,188.86,6.16340509]
[1736483202257,6.16340509,188.94,188.88,6.16340509]
[1736483202459,6.16340509,188.94,188.93,2.6468]
[1736483203253,6.16340509,188.94,188.91,2.647]
[1736483205259,6.16340509,188.94,188.87,6.16340509]
[1736483205665,6.16340509,188.94,188.92,2.647]
[1736483208759,7.2863,188.97,188.93,2.6468]
[1736483208961,6.16340509,188.97,188.89,6.16340509]
[1736483209160,6.16340509,188.97,188.9,3.1225]
[1736483209358,6.16340509,188.97,188.96,2.6464]
[1736483214364,6.16340509,188.97,188.95,2.6465]
[1736483214563,6.16340509,188.96,188.95,2.6465]
[1736483215062,6.16340509,188.96,188.94,2.6467]
[1736483216865,6.16340509,188.96,188.9,3.1225]
[1736483217365,6.16340509,188.94,188.92,2.6469]
[1736483218760,6.16340509,188.94,188.93,2.6468]
[1736483218965,146.85937322,189.02,188.93,6.16340509]
[1736483219264,153.02277831,189.02,188.99,2.646]
[1736483219472,6.16340509,189.02,188.99,2.646]
[1736483219768,6.16340509,189.02,188.95,6.16340509]
[1736483220773,6.16340509,189.04,188.97,6.16340509]
[1736483222465,6.16340509,189.04,189.01,2.6456]
[1736483222659,6.16340509,189.02,188.97,6.16340509]
[1736483222870,6.16340509,189.02,188.95,6.16340509]
[1736483224171,6.16340509,189.02,188.99,2.646]
[1736483226968,6.16340509,189.0,188.94,2.6466]
[1736483227171,6.16340509,189.0,188.93,6.16340509]
[1736483228674,6.16340509,189.0,188.91,1.6273]
[1736483228875,6.16340509,188.98,188.91,7.79070509]
[1736483229077,6.16340509,188.98,188.93,2.6467]
[1736483229270,6.16340509,188.98,188.91,7.79070509]
[1736483229476,6.16340509,188.96,188.9,3.1225]
[1736483229678,6.16340509,188.94,188.9,3.1225]
[1736483229873,6.16340509,188.94,188.92,2.6469]
[1736483231372,6.16340509,188.96,188.93,2.6468]
[1736483231574,6.16340509,188.98,188.91,6.16340509]
[1736483232577,6.16340509,188.98,188.93,2.6468]
[1736483232775,6.16340509,188.98,188.9,3.1225]
[1736483232977,6.16340509,188.98,188.9,9.28590509]
[1736483233575,6.16340509,188.96,188.92,2.6468]
[1736483235679,6.16340509,188.94,188.85,3.0594]
[1736483235876,6.16340509,188.92,188.85,3.0594]
[1736483236075,6.16340509,188.92,188.85,9.22280509]
[1736483237083,6.16340509,188.92,188.87,2.6477]
[1736483237282,6.16340509,188.92,188.78,70.00141913]
[1736483237283,9.6919098,188.92,188.78,70.00141913]
[1736483237582,9.6919098,188.92,188.8,3.1116]